[Event "Betsys MČR v online bleskovém šachu 2021"]
[Site "Chess.com"]
[Date "2021.04.17"]
[Round "13"]
[White "Joanna23W"]
[Black "PetrVelicka"]
[Result "1/2-1/2"]
[WhiteElo "2652"]
[BlackElo "2382"]
[TimeControl "180+1"]
[EndTime "11:12:20 PDT"]
[Termination "Remíza – nedostatek materiálu"]

1. e4 {[%clk 0:03:00.9]} 1... c6 {[%clk 0:02:58.2]} 2. d4 {[%clk 0:03:00.4]}
2... d5 {[%clk 0:02:58.2]} 3. e5 {[%clk 0:03:00.8]} 3... Bf5 {[%clk 0:02:56.8]}
4. h4 {[%clk 0:03:00.7]} 4... Qb6 {[%clk 0:02:54.6]} 5. Nf3 {[%clk 0:02:48.2]}
5... e6 {[%clk 0:02:46.7]} 6. Bd3 {[%clk 0:02:47.3]} 6... Bxd3 {[%clk
0:02:43.8]} 7. Qxd3 {[%clk 0:02:46.7]} 7... Qa6 {[%clk 0:02:43.8]} 8. Qe3 {[%clk
0:02:40]} 8... Nd7 {[%clk 0:02:40.3]} 9. Nc3 {[%clk 0:02:31.3]} 9... c5 {[%clk
0:02:39.4]} 10. Bd2 {[%clk 0:02:31]} 10... Ne7 {[%clk 0:02:35.6]} 11. dxc5
{[%clk 0:02:22.6]} 11... Nc6 {[%clk 0:02:29.7]} 12. Qf4 {[%clk 0:02:13.2]} 12...
Bxc5 {[%clk 0:02:28]} 13. h5 {[%clk 0:02:03.2]} 13... h6 {[%clk 0:02:18.3]} 14.
Qg3 {[%clk 0:02:00.8]} 14... O-O-O {[%clk 0:02:10]} 15. a3 {[%clk 0:01:56.5]}
15... Rhg8 {[%clk 0:02:04.3]} 16. Rh4 {[%clk 0:01:50.6]} 16... g5 {[%clk
0:01:52.8]} 17. hxg6 {[%clk 0:01:37.1]} 17... Rxg6 {[%clk 0:01:51.6]} 18. Qh2
{[%clk 0:01:25.4]} 18... Rdg8 {[%clk 0:01:48.8]} 19. g4 {[%clk 0:01:09.7]} 19...
Rxg4 {[%clk 0:01:22.5]} 20. Rxg4 {[%clk 0:01:09.4]} 20... Rxg4 {[%clk
0:01:21.1]} 21. O-O-O {[%clk 0:00:56.4]} 21... Bf8 {[%clk 0:01:14.3]} 22. Qh5
{[%clk 0:00:44.8]} 22... Rg6 {[%clk 0:01:07.5]} 23. Be3 {[%clk 0:00:42]} 23...
Qc4 {[%clk 0:00:56.6]} 24. Nh4 {[%clk 0:00:27.3]} 24... Qg4 {[%clk 0:00:53.4]}
25. Qxg4 {[%clk 0:00:24.9]} 25... Rxg4 {[%clk 0:00:53.2]} 26. Nf3 {[%clk
0:00:25.6]} 26... a6 {[%clk 0:00:49.8]} 27. Rh1 {[%clk 0:00:24.8]} 27... Rg6
{[%clk 0:00:48.8]} 28. Nh4 {[%clk 0:00:24.2]} 28... Rg4 {[%clk 0:00:45]} 29. Nf3
{[%clk 0:00:24.4]} 29... Ndxe5 {[%clk 0:00:44.9]} 30. Nxe5 {[%clk 0:00:23.7]}
30... Nxe5 {[%clk 0:00:44.6]} 31. Bxh6 {[%clk 0:00:23.8]} 31... Bxh6+ {[%clk
0:00:41.9]} 32. Rxh6 {[%clk 0:00:23.6]} 32... Rf4 {[%clk 0:00:39.9]} 33. Nd1
{[%clk 0:00:23.2]} 33... Ng4 {[%clk 0:00:36.2]} 34. Rh8+ {[%clk 0:00:21.5]}
34... Kd7 {[%clk 0:00:35]} 35. Rb8 {[%clk 0:00:20.7]} 35... Kc7 {[%clk
0:00:33.6]} 36. Rf8 {[%clk 0:00:20.8]} 36... Nxf2 {[%clk 0:00:31.7]} 37. Ne3
{[%clk 0:00:21.1]} 37... Ne4 {[%clk 0:00:29.2]} 38. b3 {[%clk 0:00:20.1]} 38...
Rf3 {[%clk 0:00:28.1]} 39. Ng4 {[%clk 0:00:20.3]} 39... Kd6 {[%clk 0:00:27.7]}
40. Nh6 {[%clk 0:00:19.9]} 40... Ke7 {[%clk 0:00:27.1]} 41. Rb8 {[%clk
0:00:20.1]} 41... Nd6 {[%clk 0:00:27.3]} 42. Ng4 {[%clk 0:00:20.3]} 42... Rf4
{[%clk 0:00:25.3]} 43. Ne5 {[%clk 0:00:20.4]} 43... Rf5 {[%clk 0:00:25.2]} 44.
Nd3 {[%clk 0:00:20.7]} 44... Rf3 {[%clk 0:00:23.4]} 45. Nc5 {[%clk 0:00:20.9]}
45... Rc3 {[%clk 0:00:20.5]} 46. Nxb7 {[%clk 0:00:20.1]} 46... Nxb7 {[%clk
0:00:20]} 47. Rxb7+ {[%clk 0:00:20.6]} 47... Kf6 {[%clk 0:00:20.3]} 48. Kd2
{[%clk 0:00:20.4]} 48... Rc6 {[%clk 0:00:18.8]} 49. a4 {[%clk 0:00:20.4]} 49...
e5 {[%clk 0:00:18.8]} 50. b4 {[%clk 0:00:20.9]} 50... Ke6 {[%clk 0:00:18.9]} 51.
b5 {[%clk 0:00:20.6]} 51... axb5 {[%clk 0:00:19.2]} 52. axb5 {[%clk 0:00:21]}
52... Rc5 {[%clk 0:00:19.2]} 53. b6 {[%clk 0:00:19.6]} 53... Rb5 {[%clk
0:00:18]} 54. Rb8 {[%clk 0:00:19.9]} 54... d4 {[%clk 0:00:16.7]} 55. Kd3 {[%clk
0:00:20.1]} 55... Kf5 {[%clk 0:00:15.6]} 56. Rf8 {[%clk 0:00:18.6]} 56... Rxb6
{[%clk 0:00:15]} 57. Rxf7+ {[%clk 0:00:19]} 57... Rf6 {[%clk 0:00:15]} 58. Re7
{[%clk 0:00:19.6]} 58... Rd6 {[%clk 0:00:15]} 59. Rf7+ {[%clk 0:00:19.9]} 59...
Ke6 {[%clk 0:00:14.6]} 60. Rf8 {[%clk 0:00:20.1]} 60... Kd5 {[%clk 0:00:14.8]}
61. Rf5 {[%clk 0:00:20]} 61... Rh6 {[%clk 0:00:13.6]} 62. Rf8 {[%clk 0:00:19.9]}
62... Rh3+ {[%clk 0:00:13.4]} 63. Kd2 {[%clk 0:00:20.4]} 63... e4 {[%clk
0:00:13.8]} 64. Rd8+ {[%clk 0:00:20.5]} 64... Ke5 {[%clk 0:00:14.2]} 65. Re8+
{[%clk 0:00:21]} 65... Kf4 {[%clk 0:00:14.4]} 66. Rf8+ {[%clk 0:00:21.5]} 66...
Kg3 {[%clk 0:00:14.7]} 67. Rg8+ {[%clk 0:00:20.8]} 67... Kf3 {[%clk 0:00:14.7]}
68. Rf8+ {[%clk 0:00:20.9]} 68... Kg2 {[%clk 0:00:15.1]} 69. Rd8 {[%clk
0:00:20.7]} 69... d3 {[%clk 0:00:14.1]} 70. cxd3 {[%clk 0:00:20.5]} 70... Rxd3+
{[%clk 0:00:13.2]} 71. Rxd3 {[%clk 0:00:20.4]} 71... exd3 {[%clk 0:00:13.7]} 72.
Kxd3 {[%clk 0:00:20.9]} 1/2-1/2

[Event "Betsys MČR v online bleskovém šachu 2021"]
[Site "Chess.com"]
[Date "2021.04.17"]
[Round "13"]
[White "Varinius"]
[Black "jarda1955"]
[Result "1-0"]
[WhiteElo "2399"]
[BlackElo "2016"]
[TimeControl "180+1"]
[EndTime "11:12:23 PDT"]
[Termination "Uživatel Varinius zvítězil na čas"]

1. f3 {[%clk 0:03:00.9]} 1... d5 {[%clk 0:02:55.7]} 2. Kf2 {[%clk 0:03:01.8]}
2... e5 {[%clk 0:02:55.4]} 3. Kg3 {[%clk 0:03:02]} 3... Bd6 {[%clk 0:02:54.5]}
4. Kf2 {[%clk 0:03:01.5]} 4... e4 {[%clk 0:02:51.3]} 5. g3 {[%clk 0:03:00.4]}
5... exf3 {[%clk 0:02:47.9]} 6. exf3 {[%clk 0:02:58.6]} 6... Nf6 {[%clk
0:02:47.9]} 7. Kg2 {[%clk 0:02:57.7]} 7... O-O {[%clk 0:02:45.6]} 8. d4 {[%clk
0:02:57.7]} 8... Be6 {[%clk 0:02:43.2]} 9. Bd3 {[%clk 0:02:56.7]} 9... Qd7
{[%clk 0:02:36.3]} 10. Nc3 {[%clk 0:02:41.4]} 10... a6 {[%clk 0:02:26.8]} 11.
Nce2 {[%clk 0:02:36.8]} 11... c5 {[%clk 0:02:18.2]} 12. c3 {[%clk 0:02:25.9]}
12... Nc6 {[%clk 0:02:14.3]} 13. Be3 {[%clk 0:02:22.6]} 13... Rfe8 {[%clk
0:02:10.1]} 14. Nf4 {[%clk 0:02:10.7]} 14... cxd4 {[%clk 0:02:05.2]} 15. cxd4
{[%clk 0:02:00.9]} 15... Bf5 {[%clk 0:02:04.6]} 16. Bf2 {[%clk 0:01:42.9]} 16...
Bxf4 {[%clk 0:02:01.1]} 17. gxf4 {[%clk 0:01:43.8]} 17... Nh5 {[%clk 0:01:57.9]}
18. Ne2 {[%clk 0:01:37.6]} 18... Bh3+ {[%clk 0:01:48.5]} 19. Kg1 {[%clk
0:01:35.7]} 19... Qd6 {[%clk 0:01:35.2]} 20. Bg3 {[%clk 0:01:31.3]} 20... Qf6
{[%clk 0:01:29.1]} 21. Kf2 {[%clk 0:00:40.5]} 21... g6 {[%clk 0:01:23.9]} 22.
Re1 {[%clk 0:00:39.3]} 22... Nxd4 {[%clk 0:01:20.7]} 23. Bc2 {[%clk 0:00:24.2]}
23... Nxe2 {[%clk 0:01:13.7]} 24. Rxe2 {[%clk 0:00:25.1]} 24... Qb6+ {[%clk
0:01:13.1]} 25. Ke1 {[%clk 0:00:23.6]} 25... Qxb2 {[%clk 0:00:46.1]} 26. Rb1
{[%clk 0:00:21.8]} 26... Qc3+ {[%clk 0:00:44.1]} 27. Kf2 {[%clk 0:00:21.9]}
27... Qc5+ {[%clk 0:00:43.6]} 28. Ke1 {[%clk 0:00:20.4]} 28... b5 {[%clk
0:00:38.7]} 29. Rb3 {[%clk 0:00:18.5]} 29... d4 {[%clk 0:00:34.2]} 30. Rd3
{[%clk 0:00:17.7]} 30... Rxe2+ {[%clk 0:00:22.7]} 31. Qxe2 {[%clk 0:00:16.8]}
31... Rc8 {[%clk 0:00:21.5]} 32. Bb3 {[%clk 0:00:15.1]} 32... Qc1+ {[%clk
0:00:20.2]} 33. Rd1 {[%clk 0:00:15.1]} 33... Qc3+ {[%clk 0:00:19.5]} 34. Kf2
{[%clk 0:00:14.1]} 34... Bd7 {[%clk 0:00:15.4]} 35. Qe7 {[%clk 0:00:11]} 35...
Qe3+ {[%clk 0:00:10.6]} 36. Qxe3 {[%clk 0:00:10.7]} 36... dxe3+ {[%clk
0:00:10.3]} 37. Kxe3 {[%clk 0:00:11.6]} 37... Re8+ {[%clk 0:00:10.4]} 38. Kf2
{[%clk 0:00:11.5]} 38... Be6 {[%clk 0:00:10.9]} 39. Rd6 {[%clk 0:00:08.7]} 39...
Bxb3 {[%clk 0:00:09.8]} 40. axb3 {[%clk 0:00:09.6]} 40... a5 {[%clk 0:00:09.5]}
41. Rd5 {[%clk 0:00:09.1]} 41... a4 {[%clk 0:00:09.4]} 42. Rxb5 {[%clk
0:00:08.7]} 42... axb3 {[%clk 0:00:08.2]} 43. Rxb3 {[%clk 0:00:09.6]} 43... Rc8
{[%clk 0:00:07.8]} 44. Rb7 {[%clk 0:00:05.9]} 44... Rc2+ {[%clk 0:00:07.4]} 45.
Ke3 {[%clk 0:00:06.2]} 45... Rc4 {[%clk 0:00:07.5]} 46. Ra7 {[%clk 0:00:04.6]}
46... Rb4 {[%clk 0:00:07.1]} 47. Ra5 {[%clk 0:00:03.2]} 47... Rb3+ {[%clk
0:00:07.5]} 48. Kf2 {[%clk 0:00:03]} 48... Rb2+ {[%clk 0:00:07.8]} 49. Kg1
{[%clk 0:00:03.4]} 49... Rb3 {[%clk 0:00:07.4]} 50. Kg2 {[%clk 0:00:03.9]} 50...
Rb2+ {[%clk 0:00:06.8]} 51. Kh3 {[%clk 0:00:03.7]} 51... Rb3 {[%clk 0:00:05.8]}
52. Kg4 {[%clk 0:00:04.1]} 52... f5+ {[%clk 0:00:04.1]} 53. Kg5 {[%clk
0:00:04.5]} 53... Rxf3 {[%clk 0:00:02.7]} 54. Ra8+ {[%clk 0:00:02.4]} 54... Kg7
{[%clk 0:00:01.6]} 55. Ra7+ {[%clk 0:00:03.3]} 55... Kg8 {[%clk 0:00:01.7]} 56.
Kh6 {[%clk 0:00:03]} 56... Kf8 {[%clk 0:00:01]} 57. Rxh7 {[%clk 0:00:02.6]} 1-0

[Event "Betsys MČR v online bleskovém šachu 2021"]
[Site "Chess.com"]
[Date "2021.04.17"]
[Round "13"]
[White "Johanna94"]
[Black "matyson523"]
[Result "1-0"]
[WhiteElo "2081"]
[BlackElo "1855"]
[TimeControl "180+1"]
[EndTime "11:12:24 PDT"]
[Termination "Uživatel Johanna94 zvítězil matem"]

1. d4 {[%clk 0:03:00.9]} 1... d5 {[%clk 0:02:58.9]} 2. c4 {[%clk 0:03:01]} 2...
e6 {[%clk 0:02:58.9]} 3. Nf3 {[%clk 0:03:01.1]} 3... c5 {[%clk 0:02:58.6]} 4. e3
{[%clk 0:03:00.1]} 4... Nc6 {[%clk 0:02:58]} 5. Nc3 {[%clk 0:02:58.4]} 5... Nf6
{[%clk 0:02:56.7]} 6. cxd5 {[%clk 0:02:48.9]} 6... exd5 {[%clk 0:02:56.2]} 7.
Be2 {[%clk 0:02:44.7]} 7... cxd4 {[%clk 0:02:55.1]} 8. exd4 {[%clk 0:02:38.5]}
8... Bd6 {[%clk 0:02:54.5]} 9. Bg5 {[%clk 0:02:33.3]} 9... O-O {[%clk
0:02:53.3]} 10. O-O {[%clk 0:02:31.3]} 10... Be6 {[%clk 0:02:50.7]} 11. Rc1
{[%clk 0:02:22.5]} 11... a6 {[%clk 0:02:47.8]} 12. Bh4 {[%clk 0:02:13.3]} 12...
h6 {[%clk 0:02:44.3]} 13. Re1 {[%clk 0:02:11.6]} 13... Rc8 {[%clk 0:02:36]} 14.
Bd3 {[%clk 0:01:54.8]} 14... Re8 {[%clk 0:02:33.1]} 15. Bb1 {[%clk 0:01:50.2]}
15... Bb8 {[%clk 0:02:00.7]} 16. a3 {[%clk 0:01:37.6]} 16... g5 {[%clk
0:01:22.9]} 17. Bg3 {[%clk 0:01:35.9]} 17... Bxg3 {[%clk 0:01:19.8]} 18. hxg3
{[%clk 0:01:35.6]} 18... Bg4 {[%clk 0:01:18.7]} 19. Qd3 {[%clk 0:01:32.2]} 19...
Kg7 {[%clk 0:00:49.6]} 20. Ne5 {[%clk 0:00:59.3]} 20... Ne4 {[%clk 0:00:35.5]}
21. Nxe4 {[%clk 0:00:52.2]} 21... dxe4 {[%clk 0:00:35]} 22. Qxe4 {[%clk
0:00:51.2]} 22... f5 {[%clk 0:00:33.5]} 23. Nxc6 {[%clk 0:00:37]} 23... fxe4
{[%clk 0:00:18.8]} 24. Nxd8 {[%clk 0:00:37.1]} 24... Rxc1 {[%clk 0:00:18]} 25.
Rxc1 {[%clk 0:00:36.3]} 25... Rxd8 {[%clk 0:00:18.2]} 26. Rc7+ {[%clk
0:00:36.2]} 26... Kf6 {[%clk 0:00:18.3]} 27. Bxe4 {[%clk 0:00:34.4]} 27... Rxd4
{[%clk 0:00:18.1]} 28. Bf3 {[%clk 0:00:34.5]} 28... Bxf3 {[%clk 0:00:17.5]} 29.
gxf3 {[%clk 0:00:34.9]} 29... Rd1+ {[%clk 0:00:17.4]} 30. Kg2 {[%clk 0:00:34.4]}
30... b5 {[%clk 0:00:17.2]} 31. Rc6+ {[%clk 0:00:34.3]} 31... Kg7 {[%clk
0:00:17.3]} 32. Rxa6 {[%clk 0:00:34.9]} 32... Rb1 {[%clk 0:00:17.5]} 33. Rb6
{[%clk 0:00:33.2]} 33... Rxb2 {[%clk 0:00:17.7]} 34. a4 {[%clk 0:00:33.4]} 34...
b4 {[%clk 0:00:17.5]} 35. a5 {[%clk 0:00:34]} 35... Ra2 {[%clk 0:00:17.6]} 36.
a6 {[%clk 0:00:34.3]} 36... b3 {[%clk 0:00:17.6]} 37. Rb7+ {[%clk 0:00:34.3]}
37... Kg6 {[%clk 0:00:17.6]} 38. a7 {[%clk 0:00:34.9]} 38... b2 {[%clk
0:00:16.6]} 39. g4 {[%clk 0:00:34.2]} 39... Rxa7 {[%clk 0:00:15.2]} 40. Rxb2
{[%clk 0:00:33.9]} 40... Rf7 {[%clk 0:00:14.8]} 41. Rb6+ {[%clk 0:00:33.6]}
41... Rf6 {[%clk 0:00:15.1]} 42. Rxf6+ {[%clk 0:00:31.5]} 42... Kxf6 {[%clk
0:00:15.5]} 43. Kh3 {[%clk 0:00:30.3]} 43... Ke6 {[%clk 0:00:15]} 44. Kh2 {[%clk
0:00:30.1]} 44... Kd5 {[%clk 0:00:15.1]} 45. Kh3 {[%clk 0:00:23.8]} 45... Kd4
{[%clk 0:00:15]} 46. Kg2 {[%clk 0:00:17.4]} 46... Kd5 {[%clk 0:00:14.3]} 47. Kf1
{[%clk 0:00:16.1]} 47... Ke5 {[%clk 0:00:13.6]} 48. Ke1 {[%clk 0:00:14.4]} 48...
Kd5 {[%clk 0:00:13.2]} 49. Ke2 {[%clk 0:00:14.9]} 49... Kd4 {[%clk 0:00:11.5]}
50. Kd2 {[%clk 0:00:14.7]} 50... Kc4 {[%clk 0:00:11.8]} 51. Ke3 {[%clk
0:00:14.9]} 51... Kd5 {[%clk 0:00:11.9]} 52. f4 {[%clk 0:00:14.9]} 52... Ke6
{[%clk 0:00:10.4]} 53. fxg5 {[%clk 0:00:13.6]} 53... hxg5 {[%clk 0:00:09.1]} 54.
Ke4 {[%clk 0:00:14.3]} 54... Kf6 {[%clk 0:00:07.8]} 55. Kd5 {[%clk 0:00:14.4]}
55... Kg6 {[%clk 0:00:07.7]} 56. Ke6 {[%clk 0:00:14.8]} 56... Kg7 {[%clk
0:00:07.9]} 57. Kf5 {[%clk 0:00:15.2]} 57... Kh6 {[%clk 0:00:08.3]} 58. Kf6
{[%clk 0:00:15.9]} 58... Kh7 {[%clk 0:00:08.6]} 59. Kxg5 {[%clk 0:00:16.6]}
59... Kg7 {[%clk 0:00:08.9]} 60. f4 {[%clk 0:00:17]} 60... Kf7 {[%clk
0:00:08.8]} 61. f5 {[%clk 0:00:17.2]} 61... Kg7 {[%clk 0:00:09.2]} 62. Kf4
{[%clk 0:00:17.9]} 62... Kf7 {[%clk 0:00:09.4]} 63. g5 {[%clk 0:00:18.7]} 63...
Kg7 {[%clk 0:00:09.9]} 64. Ke5 {[%clk 0:00:19.4]} 64... Kf7 {[%clk 0:00:10.3]}
65. f6 {[%clk 0:00:18.7]} 65... Kg6 {[%clk 0:00:10.3]} 66. Ke6 {[%clk
0:00:18.9]} 66... Kxg5 {[%clk 0:00:09.9]} 67. f7 {[%clk 0:00:19.6]} 67... Kg6
{[%clk 0:00:10.2]} 68. f8=Q {[%clk 0:00:20]} 68... Kh7 {[%clk 0:00:10.4]} 69.
Qf1 {[%clk 0:00:20.5]} 69... Kg6 {[%clk 0:00:10.5]} 70. Qg1+ {[%clk 0:00:20.5]}
70... Kh5 {[%clk 0:00:11]} 71. Kf5 {[%clk 0:00:20.5]} 71... Kh6 {[%clk
0:00:11.5]} 72. Qg6# {[%clk 0:00:20.5]} 1-0

[Event "Betsys MČR v online bleskovém šachu 2021"]
[Site "Chess.com"]
[Date "2021.04.17"]
[Round "13"]
[White "Patriktesko"]
[Black "Koli05"]
[Result "1-0"]
[WhiteElo "2023"]
[BlackElo "1809"]
[TimeControl "180+1"]
[EndTime "11:12:24 PDT"]
[Termination "Uživatel Patriktesko zvítězil matem"]

1. d4 {[%clk 0:03:00.9]} 1... d5 {[%clk 0:02:59]} 2. Nf3 {[%clk 0:03:00.8]} 2...
e6 {[%clk 0:02:58.7]} 3. Bg5 {[%clk 0:03:00.6]} 3... Be7 {[%clk 0:02:55]} 4. Bf4
{[%clk 0:03:00.4]} 4... Nf6 {[%clk 0:02:53.6]} 5. c3 {[%clk 0:03:00.4]} 5... c5
{[%clk 0:02:53]} 6. e3 {[%clk 0:02:59.5]} 6... Nc6 {[%clk 0:02:52.4]} 7. Be2
{[%clk 0:02:58.8]} 7... Nh5 {[%clk 0:02:49.4]} 8. Bg3 {[%clk 0:02:58.3]} 8...
Nxg3 {[%clk 0:02:48]} 9. hxg3 {[%clk 0:02:58.3]} 9... b6 {[%clk 0:02:47.7]} 10.
Nbd2 {[%clk 0:02:57.8]} 10... Bb7 {[%clk 0:02:45.6]} 11. O-O {[%clk 0:02:57.6]}
11... O-O {[%clk 0:02:44.8]} 12. a3 {[%clk 0:02:56.9]} 12... Rc8 {[%clk
0:02:40.9]} 13. Ne5 {[%clk 0:02:51.6]} 13... Bd6 {[%clk 0:02:33]} 14. Nxc6
{[%clk 0:02:50.8]} 14... Bxc6 {[%clk 0:02:31.5]} 15. Nf3 {[%clk 0:02:51.7]}
15... Qf6 {[%clk 0:02:28.9]} 16. a4 {[%clk 0:02:48.3]} 16... a5 {[%clk
0:02:26.8]} 17. b3 {[%clk 0:02:44.5]} 17... Rfd8 {[%clk 0:02:21.1]} 18. Rc1
{[%clk 0:02:42.5]} 18... e5 {[%clk 0:02:13.2]} 19. dxe5 {[%clk 0:02:42.3]} 19...
Bxe5 {[%clk 0:02:12.5]} 20. Nxe5 {[%clk 0:02:42.2]} 20... Qxe5 {[%clk
0:02:12.1]} 21. Bf3 {[%clk 0:02:42.2]} 21... Rd6 {[%clk 0:01:59.5]} 22. Qd2
{[%clk 0:02:36.5]} 22... Rcd8 {[%clk 0:01:55.4]} 23. Rfd1 {[%clk 0:02:36.4]}
23... g5 {[%clk 0:01:34.6]} 24. Qc2 {[%clk 0:02:21.7]} 24... f5 {[%clk
0:01:17.3]} 25. c4 {[%clk 0:02:10.2]} 25... g4 {[%clk 0:01:09.8]} 26. Bxd5+
{[%clk 0:02:08.6]} 26... Bxd5 {[%clk 0:01:09]} 27. cxd5 {[%clk 0:02:08]} 27...
Rxd5 {[%clk 0:01:08.5]} 28. Rxd5 {[%clk 0:02:05.9]} 28... Qxd5 {[%clk
0:01:06.6]} 29. Qc3 {[%clk 0:01:58.2]} 29... Qd2 {[%clk 0:01:04.1]} 30. Qxd2
{[%clk 0:01:45.1]} 30... Rxd2 {[%clk 0:01:03.2]} 31. Kf1 {[%clk 0:01:43.8]}
31... Rd3 {[%clk 0:00:57.9]} 32. Rb1 {[%clk 0:01:37.3]} 32... Rd2 {[%clk
0:00:57.4]} 33. Ke1 {[%clk 0:01:36.5]} 33... Rc2 {[%clk 0:00:53.3]} 34. Rd1
{[%clk 0:01:33]} 34... Rb2 {[%clk 0:00:46.5]} 35. Rd3 {[%clk 0:01:32.4]} 35...
Kf7 {[%clk 0:00:45.8]} 36. Rd5 {[%clk 0:01:22.5]} 36... Ke6 {[%clk 0:00:44.1]}
37. Rd3 {[%clk 0:01:22]} 37... Ke5 {[%clk 0:00:43]} 38. Rc3 {[%clk 0:01:19.8]}
38... Ke4 {[%clk 0:00:36]} 39. Kf1 {[%clk 0:01:15.9]} 39... Kd5 {[%clk
0:00:33.9]} 40. Ke1 {[%clk 0:01:14.7]} 40... Kc6 {[%clk 0:00:33.8]} 41. Kf1
{[%clk 0:01:08.1]} 41... Rb1+ {[%clk 0:00:32.4]} 42. Ke2 {[%clk 0:01:07.5]}
42... Rb2+ {[%clk 0:00:32.2]} 43. Ke1 {[%clk 0:01:07.4]} 43... b5 {[%clk
0:00:31.8]} 44. axb5+ {[%clk 0:01:06.9]} 44... Kxb5 {[%clk 0:00:31.1]} 45. Rd3
{[%clk 0:01:03.7]} 45... Kb4 {[%clk 0:00:30.1]} 46. Rd7 {[%clk 0:01:00.2]} 46...
Kxb3 {[%clk 0:00:28.9]} 47. Rxh7 {[%clk 0:00:58.9]} 47... a4 {[%clk 0:00:27.6]}
48. Rc7 {[%clk 0:00:56]} 48... c4 {[%clk 0:00:26]} 49. Rb7+ {[%clk 0:00:52]}
49... Kc3 {[%clk 0:00:25.4]} 50. Ra7 {[%clk 0:00:51.3]} 50... Ra2 {[%clk
0:00:24.1]} 51. f3 {[%clk 0:00:48.6]} 51... gxf3 {[%clk 0:00:21.2]} 52. gxf3
{[%clk 0:00:48.4]} 52... a3 {[%clk 0:00:22.1]} 53. g4 {[%clk 0:00:47.2]} 53...
fxg4 {[%clk 0:00:20]} 54. fxg4 {[%clk 0:00:47.1]} 54... Kd3 {[%clk 0:00:20.1]}
55. g5 {[%clk 0:00:42.4]} 55... c3 {[%clk 0:00:19.7]} 56. g6 {[%clk 0:00:37]}
56... c2 {[%clk 0:00:19.1]} 57. Rd7+ {[%clk 0:00:35.8]} 57... Kxe3 {[%clk
0:00:18.3]} 58. Re7+ {[%clk 0:00:36.1]} 58... Kf4 {[%clk 0:00:17.6]} 59. Kd2
{[%clk 0:00:33.8]} 59... Rb2 {[%clk 0:00:14.7]} 60. g7 {[%clk 0:00:31.3]} 60...
Rb8 {[%clk 0:00:11.1]} 61. Rf7+ {[%clk 0:00:26.6]} 61... Kg5 {[%clk 0:00:10.2]}
62. Rf8 {[%clk 0:00:26.4]} 62... Rb1 {[%clk 0:00:05.5]} 63. g8=Q+ {[%clk
0:00:25.7]} 63... Kh5 {[%clk 0:00:03.6]} 64. Qh7+ {[%clk 0:00:23.7]} 64... Kg4
{[%clk 0:00:02.2]} 65. Qg7+ {[%clk 0:00:23.5]} 65... Kh5 {[%clk 0:00:01.5]} 66.
Rh8# {[%clk 0:00:23.4]} 1-0

[Event "Betsys MČR v online bleskovém šachu 2021"]
[Site "Chess.com"]
[Date "2021.04.17"]
[Round "13"]
[White "DenisaD2008"]
[Black "Sfreedom01"]
[Result "0-1"]
[WhiteElo "952"]
[BlackElo "1336"]
[TimeControl "180+1"]
[EndTime "11:12:26 PDT"]
[Termination "Uživatel Sfreedom01 zvítězil matem"]

1. e4 {[%clk 0:03:00.9]} 1... g6 {[%clk 0:02:54.8]} 2. Nc3 {[%clk 0:02:59.5]}
2... Bg7 {[%clk 0:02:45.5]} 3. Nf3 {[%clk 0:02:57.4]} 3... e6 {[%clk 0:02:45.7]}
4. d4 {[%clk 0:02:56.1]} 4... Ne7 {[%clk 0:02:45.4]} 5. Be3 {[%clk 0:02:55.8]}
5... c6 {[%clk 0:02:45.5]} 6. Bd3 {[%clk 0:02:55.7]} 6... d5 {[%clk 0:02:43.6]}
7. exd5 {[%clk 0:02:53.8]} 7... cxd5 {[%clk 0:02:43.6]} 8. O-O {[%clk
0:02:48.1]} 8... Nbc6 {[%clk 0:02:43.6]} 9. h3 {[%clk 0:02:45.8]} 9... O-O
{[%clk 0:02:42.7]} 10. Qd2 {[%clk 0:02:43.8]} 10... Bd7 {[%clk 0:02:39]} 11. Bh6
{[%clk 0:02:41.5]} 11... a6 {[%clk 0:02:36.2]} 12. Bxg7 {[%clk 0:02:38.7]} 12...
Kxg7 {[%clk 0:02:36.1]} 13. Rfe1 {[%clk 0:02:29.4]} 13... b5 {[%clk 0:02:28.5]}
14. b4 {[%clk 0:02:24.7]} 14... Re8 {[%clk 0:02:24.4]} 15. a4 {[%clk 0:02:23]}
15... bxa4 {[%clk 0:02:21.7]} 16. Rxa4 {[%clk 0:02:20.2]} 16... Nxd4 {[%clk
0:02:06.8]} 17. Nxd4 {[%clk 0:02:17]} 17... Bxa4 {[%clk 0:02:06.3]} 18. Nxa4
{[%clk 0:02:16.6]} 18... Nf5 {[%clk 0:01:58.1]} 19. Nxf5+ {[%clk 0:02:15.5]}
19... exf5 {[%clk 0:01:58.1]} 20. Rxe8 {[%clk 0:02:07.5]} 20... Qxe8 {[%clk
0:01:57.9]} 21. Nc5 {[%clk 0:02:04.8]} 21... Rc8 {[%clk 0:01:30.4]} 22. g4
{[%clk 0:02:00]} 22... fxg4 {[%clk 0:01:26.8]} 23. hxg4 {[%clk 0:01:59]} 23...
a5 {[%clk 0:01:26.8]} 24. Ba6 {[%clk 0:01:54.1]} 24... Ra8 {[%clk 0:01:06.7]}
25. bxa5 {[%clk 0:01:45.1]} 25... Qc6 {[%clk 0:01:04.2]} 26. Qc3+ {[%clk
0:01:27.4]} 26... Kg8 {[%clk 0:00:51.7]} 27. Bb7 {[%clk 0:01:27]} 27... Qe8
{[%clk 0:00:32.7]} 28. Bxa8 {[%clk 0:01:26.7]} 28... Qxa8 {[%clk 0:00:32.3]} 29.
Qb4 {[%clk 0:01:19.6]} 29... d4 {[%clk 0:00:27.3]} 30. Qxd4 {[%clk 0:01:17.8]}
30... Qxa5 {[%clk 0:00:22.3]} 31. Qd8+ {[%clk 0:01:18]} 31... Kg7 {[%clk
0:00:21.9]} 32. Qd4+ {[%clk 0:01:16.1]} 32... Kg8 {[%clk 0:00:20.6]} 33. c4
{[%clk 0:01:11.8]} 33... Qe1+ {[%clk 0:00:19]} 34. Kg2 {[%clk 0:01:10.1]} 34...
Qe2 {[%clk 0:00:16.9]} 35. Qd8+ {[%clk 0:00:59.5]} 35... Kg7 {[%clk 0:00:16.6]}
36. Qd4+ {[%clk 0:00:52.6]} 36... Kg8 {[%clk 0:00:16.3]} 37. Qe4 {[%clk
0:00:44.7]} 37... Qb2 {[%clk 0:00:12.3]} 38. Nd3 {[%clk 0:00:43.8]} 38... Qa3
{[%clk 0:00:10.2]} 39. c5 {[%clk 0:00:41.4]} 39... Qa7 {[%clk 0:00:05.3]} 40. c6
{[%clk 0:00:38.3]} 40... Qc7 {[%clk 0:00:04.9]} 41. Nb4 {[%clk 0:00:32.1]} 41...
Qc8 {[%clk 0:00:04.6]} 42. Na6 {[%clk 0:00:25.9]} 42... Qxa6 {[%clk 0:00:03.5]}
43. Qe8+ {[%clk 0:00:24.1]} 43... Kg7 {[%clk 0:00:03]} 44. c7 {[%clk 0:00:23]}
44... Qb7+ {[%clk 0:00:01.7]} 45. Kg3 {[%clk 0:00:16.7]} 45... Qxc7+ {[%clk
0:00:01.2]} 46. f4 {[%clk 0:00:14.8]} 46... Qc3+ {[%clk 0:00:01.6]} 47. Kh4
{[%clk 0:00:13.6]} 47... Qe1+ {[%clk 0:00:01.7]} 48. Kg5 {[%clk 0:00:11.9]}
48... Qxe8 {[%clk 0:00:01.7]} 49. f5 {[%clk 0:00:10.7]} 49... Qb5 {[%clk
0:00:02.6]} 50. Kf4 {[%clk 0:00:08.1]} 50... gxf5 {[%clk 0:00:03.5]} 51. gxf5
{[%clk 0:00:07.4]} 51... h6 {[%clk 0:00:03.5]} 52. Kg4 {[%clk 0:00:06.9]} 52...
Kf6 {[%clk 0:00:04.3]} 53. Kf4 {[%clk 0:00:06]} 53... Qxf5+ {[%clk 0:00:04.8]}
54. Kg3 {[%clk 0:00:06]} 54... Kg5 {[%clk 0:00:04.8]} 55. Kg2 {[%clk 0:00:04.3]}
55... Kg4 {[%clk 0:00:05.1]} 56. Kh2 {[%clk 0:00:03.6]} 56... Qf2+ {[%clk
0:00:04.6]} 57. Kh1 {[%clk 0:00:02.6]} 57... Qb2 {[%clk 0:00:04.5]} 58. Kg1
{[%clk 0:00:02.1]} 58... h5 {[%clk 0:00:04.8]} 59. Kh1 {[%clk 0:00:02]} 59...
Kg3 {[%clk 0:00:04.9]} 60. Kg1 {[%clk 0:00:02.2]} 60... Qg2# {[%clk 0:00:05.8]}
0-1